bitfinex/quotes_SOLUSD_20250621
["timestamp","ask_amount","ask_price","bid_price","bid_amount"]
[1750496183872,9.63799787,141.37,141.35,7.07463742]
[1750496186687,10.34799787,141.36,141.35,7.07463742]
[1750496187778,0.71,141.36,141.35,7.07463742]
[1750496187979,9.63799787,141.36,141.33,17.68909644]
[1750496188299,0.71,141.35,141.33,17.68909644]
[1750496188500,10.34799787,141.35,141.33,17.68909644]
[1750496189697,0.71,141.35,141.33,17.68909644]
[1750496191098,9.63799787,141.36,141.33,17.68909644]
[1750496192102,9.63799787,141.36,141.33,24.76473501]
[1750496193085,10.34799787,141.37,141.33,70.25092576]
[1750496195602,24.64964886,141.39,141.33,69.78092576]
[1750496195808,9.63799787,141.38,141.33,70.25092576]
[1750496195974,9.63799787,141.37,141.33,70.25092576]
[1750496196176,10.34799787,141.37,141.33,70.25092576]
[1750496196783,24.64964886,141.39,141.33,69.78092576]
[1750496197093,9.63799787,141.37,141.33,70.25092576]
[1750496197497,9.63799787,141.37,141.33,69.78092576]
[1750496197693,9.63799787,141.37,141.34,0.47]
[1750496198205,9.63799787,141.37,141.35,7.07463742]
[1750496200706,10.34799787,141.38,141.35,24.76123098]
[1750496201701,9.63799787,141.38,141.35,24.76123098]
[1750496201910,0.71,141.37,141.35,17.68659356]
[1750496205418,6.88008803,141.37,141.35,17.68659356]
[1750496205815,6.17008803,141.37,141.35,17.68659356]
[1750496206323,6.17008803,141.36,141.35,17.68659356]
[1750496206488,0.74,141.35,141.34,7.07513796]
[1750496207018,6.91008803,141.35,141.34,7.07513796]
[1750496207510,6.17008803,141.35,141.34,24.76298287]
[1750496208298,6.91008803,141.35,141.34,24.76298287]
[1750496208524,6.91008803,141.35,141.32,24.76648739]
[1750496209019,6.17008803,141.35,141.32,25.23648739]
[1750496211526,6.17008803,141.34,141.32,24.76648739]
[1750496211736,6.91008803,141.34,141.32,24.76648739]
[1750496213503,6.91008803,141.34,141.32,17.69034814]
[1750496214723,6.17008803,141.34,141.32,17.69034814]
[1750496216811,6.17008803,141.34,141.32,24.76648739]
[1750496217011,89.4,141.38,141.32,60.61718368]
[1750496217012,5.29226261,141.37,141.32,60.61718368]
[1750496217299,6.17008803,141.35,141.32,60.61718368]
[1750496217625,0.74,141.36,141.32,60.61718368]
[1750496217924,6.91008803,141.35,141.32,60.61718368]
[1750496219118,19.38964886,141.37,141.34,24.76298287]
[1750496219322,6.17008803,141.35,141.34,24.76298287]
[1750496219703,0.74,141.36,141.34,24.76298287]
[1750496219897,6.17008803,141.35,141.34,24.76298287]
[1750496220316,6.17008803,141.36,141.33,0.47]
[1750496220632,89.4,141.38,141.33,6.17008803]
[1750496220817,6.91008803,141.4,141.36,0.47]
[1750496221007,6.91008803,141.4,141.36,6.64008803]
[1750496221208,6.91008803,141.4,141.36,0.47]
[1750496221531,6.91008803,141.4,141.36,6.64008803]
[1750496221833,6.91008803,141.39,141.37,7.07363655]
[1750496222825,10.37816054,141.39,141.36,24.75906524]
[1750496224034,0.74,141.39,141.36,24.75906524]
[1750496224226,10.37816054,141.39,141.36,24.75906524]
[1750496224618,10.37816054,141.4,141.36,70.23791055]
[1750496227929,0.74,141.4,141.36,70.23791055]
[1750496228335,10.37816054,141.4,141.36,70.23791055]
[1750496230832,10.37816054,141.4,141.36,60.59975001]
[1750496231131,9.63816054,141.4,141.36,70.23791055]
[1750496231542,9.63816054,141.4,141.39,26.0]
[1750496232416,9.63816054,141.4,141.39,7.07263597]
[1750496233510,13.87698367,141.41,141.38,24.75597679]
[1750496233738,13.87698367,141.41,141.38,25.22597679]
[1750496237137,14.55698367,141.41,141.38,25.22597679]
[1750496237333,14.55698367,141.41,141.38,17.68284057]
[1750496237524,10.31816054,141.4,141.38,17.68284057]
[1750496241923,9.63816054,141.4,141.38,17.68284057]
[1750496242242,4.91882313,141.41,141.38,17.68284057]
[1750496242423,14.55698367,141.41,141.38,17.68284057]
[1750496242636,13.87698367,141.41,141.38,18.15284057]
[1750496242840,10.4059081,141.41,141.38,25.22597679]
[1750496243637,4.91882313,141.41,141.38,24.75597679]
[1750496243964,11.0859081,141.41,141.38,25.22597679]
[1750496244336,11.0859081,141.41,141.38,24.75597679]
[1750496245352,4.23882313,141.41,141.38,50.75597679]
[1750496245561,4.23882313,141.41,141.4,32.16708497]
[1750496245865,4.23882313,141.41,141.4,58.87892485]
[1750496246032,4.23882313,141.41,141.4,2.0435]
[1750496246227,4.23882313,141.41,141.4,28.0435]
[1750496246433,4.23882313,141.41,141.4,63.11774785]
[1750496246955,2.57222313,141.41,141.4,51.25482574]
[1750496247138,1.5296268,141.43,141.42,44.64964886]
[1750496247337,1.5296268,141.43,141.42,83.96500791]
[1750496248230,6.32,141.5,141.43,18.64964886]
[1750496248433,6.32,141.5,141.48,9.62535905]
[1750496248652,10.30535905,141.52,141.47,29.22]
[1750496248857,5.27493534,141.54,141.47,29.22]
[1750496248858,10.30535905,141.51,141.47,29.22]
[1750496249042,0.68,141.5,141.48,24.73847892]
[1750496249835,9.62535905,141.5,141.48,24.73847892]
[1750496250157,10.30535905,141.5,141.48,24.73847892]
[1750496250345,0.68,141.5,141.48,24.73847892]
[1750496251174,10.30535905,141.5,141.48,17.67034209]
[1750496251736,0.68,141.5,141.48,17.67034209]
[1750496251936,10.30535905,141.5,141.48,17.67034209]
[1750496252137,0.68,141.5,141.48,17.67034209]
[1750496252757,10.30535905,141.51,141.48,17.67034209]
[1750496252934,9.62535905,141.52,141.48,27.29570114]
[1750496253134,5.25528336,141.57,141.51,36.09535905]
[1750496253334,10.30535905,141.59,141.55,9.62535905]
[1750496253782,10.30535905,141.59,141.53,0.47]
[1750496253955,10.30535905,141.59,141.55,9.62535905]
[1750496254168,0.68,141.59,141.56,24.72449844]
[1750496254459,11.96145905,141.6,141.56,34.34985749]
[1750496256162,0.68,141.62,141.58,24.72100578]
[1750496256350,9.62535905,141.61,141.58,24.72100578]
[1750496256766,9.62535905,141.62,141.58,34.81636483]
[1750496256957,5.87722313,141.63,141.58,60.03672833]
[1750496257166,4.23882313,141.63,141.59,10.09535905]
[1750496257343,14.54418218,141.63,141.59,9.62535905]
[1750496258168,14.54418218,141.63,141.6,24.71751412]
[1750496258169,4.23882313,141.63,141.6,24.71751412]
[1750496258350,4.23882313,141.63,141.6,34.34287317]
[1750496258747,4.23882313,141.63,141.61,9.62535905]
[1750496260249,4.23882313,141.63,141.62,7.06114955]
[1750496260657,14.54418218,141.63,141.62,7.06114955]
[1750496260844,4.23882313,141.63,141.62,7.06114955]
[1750496261949,4.23882313,141.63,141.62,16.6865086]
[1750496263941,4.23882313,141.63,141.62,7.06114955]
[1750496267851,4.23882313,141.63,141.61,7.06164818]
[1750496268149,4.23882313,141.63,141.61,16.68700723]
[1750496268368,4.23882313,141.63,141.61,7.53164818]
[1750496268953,4.23882313,141.63,141.61,7.06164818]
[1750496273878,4.93882313,141.63,141.61,7.06164818]
[1750496275760,4.23882313,141.63,141.61,7.06164818]
[1750496276254,4.23882313,141.63,141.61,16.68700723]
[1750496278470,4.23882313,141.63,141.62,9.62535905]
[1750496278661,4.23882313,141.63,141.61,16.68700723]
[1750496280281,4.23882313,141.63,141.62,36.09535905]
[1750496281671,1.5296268,141.71,141.65,26.0]
[1750496281865,2.2296268,141.71,141.69,9.62535905]
[1750496282071,2.2296268,141.71,141.68,9.62535905]
[1750496282380,1.5296268,141.71,141.7,9.62535905]
[1750496283590,1.5296268,141.71,141.7,10.09535905]
[1750496283977,1.5296268,141.71,141.7,9.62535905]
[1750496284174,1.5296268,141.71,141.7,7.05716302]
[1750496284375,1.5296268,141.71,141.7,16.68252207]
[1750496285491,1.5296268,141.71,141.7,7.05716302]
[1750496285687,1.5296268,141.71,141.7,16.68252207]
[1750496289268,1.5296268,141.71,141.7,7.05716302]
[1750496289468,1.5296268,141.71,141.7,16.68252207]
[1750496299504,1.5296268,141.71,141.7,46.29252207]
[1750496301310,1.5296268,141.71,141.7,80.98752998]
[1750496301619,0.5,141.77,141.73,26.0]
[1750496301917,0.5,141.77,141.75,0.47]
[1750496302282,0.5,141.77,141.76,9.62535905]
[1750496302481,0.5,141.77,141.75,0.47]
[1750496302908,0.5,141.77,141.74,30.11]
[1750496303210,0.5,141.77,141.75,0.47]
[1750496303512,0.5,141.77,141.76,16.67953512]
[1750496303819,0.5,141.77,141.76,7.05417607]
[1750496304021,0.5,141.77,141.76,16.67953512]
[1750496304208,0.5,141.77,141.76,42.67953512]
[1750496304392,0.5,141.77,141.76,43.14953512]
[1750496304711,0.5,141.77,141.76,42.67953512]
[1750496304920,0.5,141.77,141.76,33.05417607]
[1750496305100,0.5,141.77,141.76,42.67953512]
[1750496305309,0.5,141.77,141.76,72.49953512]
[1750496306355,0.5,141.77,141.76,72.96953512]
[1750496306528,0.5,141.77,141.76,62.87417607]
[1750496306697,0.5,141.77,141.76,72.49953512]
[1750496307021,0.5,141.77,141.76,62.87417607]
[1750496307190,0.5,141.77,141.76,72.49953512]
[1750496308216,0.5,141.77,141.76,62.87417607]
[1750496308427,0.5,141.77,141.76,72.49953512]
[1750496311315,0.5,141.77,141.76,72.96953512]
[1750496314042,4.23882313,141.86,141.83,18.64964886]
[1750496314242,4.23882313,141.86,141.85,9.62535905]
[1750496314613,4.23882313,141.86,141.85,10.09535905]
[1750496315331,4.23882313,141.86,141.85,54.74500791]
[1750496315835,4.23882313,141.86,141.85,61.79470829]
[1750496316404,4.23882313,141.86,141.85,35.79470829]
[1750496316829,1.6116,141.92,141.88,26.0]
[1750496317002,1.6116,141.92,141.89,29.76]
[1750496317203,1.6116,141.92,141.91,9.62535905]
[1750496317406,2.2916,141.92,141.91,9.62535905]
[1750496317813,2.2916,141.92,141.91,16.6720788]
[1750496318050,2.2916,141.92,141.91,7.04671975]
[1750496318417,0.68,141.96,141.91,125.28247692]
[1750496318612,0.68,141.96,141.91,116.12711787]
[1750496318923,1.5296268,142.0,141.94,26.0]
[1750496319122,2.2096268,142.0,141.95,30.88]
[1750496319348,0.68,141.99,141.97,9.62535905]
[1750496319533,1.5296268,142.0,141.98,30.94]
[1750496319843,1.5296268,142.0,141.95,0.47]
[1750496319844,0.68,141.99,141.95,78.52988837]
[1750496320023,0.68,141.99,141.95,59.88023951]
[1750496320343,0.68,141.99,141.95,24.65656921]
[1750496320560,10.30535905,141.98,141.95,24.65656921]
[1750496320759,0.68,141.99,141.95,24.65656921]
[1750496320913,1.5296268,142.0,141.95,24.65656921]
[1750496321231,2.2096268,142.0,141.96,31.44]
[1750496321445,1.5296268,142.0,141.96,31.44]
[1750496321636,0.68,141.99,141.95,59.88023951]
[1750496321941,0.68,141.99,141.92,24.66178128]
[1750496322251,9.62535905,141.93,141.92,24.66178128]
[1750496322544,0.68,141.93,141.92,7.04622322]
[1750496323216,10.30535905,141.93,141.92,7.04622322]
[1750496323423,0.68,141.93,141.92,7.04622322]
[1750496323837,10.30535905,141.93,141.92,7.04622322]
[1750496324040,10.30535905,141.93,141.89,24.666355]
[1750496324316,0.69,141.9,141.89,7.04771301]
[1750496324912,10.31535905,141.9,141.89,7.04771301]
[1750496325117,0.69,141.9,141.89,7.04771301]
[1750496325324,10.31535905,141.9,141.89,7.04771301]
[1750496325732,0.69,141.9,141.87,7.04870656]
[1750496325942,10.31535905,141.9,141.87,7.04870656]
[1750496326153,9.62535905,141.91,141.87,34.29583201]
[1750496326354,0.69,141.95,141.88,9.62535905]
[1750496326517,0.69,141.94,141.88,9.62535905]
[1750496326722,10.31535905,141.92,141.88,9.62535905]
[1750496326922,5.22148722,141.95,141.87,59.91400577]
[1750496327142,9.62535905,141.92,141.88,9.62535905]
[1750496327353,10.31535905,141.92,141.88,9.62535905]
[1750496327945,0.69,141.91,141.89,24.66699555]
[1750496328322,0.69,141.95,141.89,59.90556063]
[1750496328548,9.62535905,141.92,141.89,59.90556063]
[1750496329031,10.31535905,141.91,141.89,24.66699555]
[1750496329619,10.31535905,141.9,141.89,24.66699555]
[1750496329823,18.14075905,141.9,141.89,7.04771301]
[1750496330044,18.14075905,141.9,141.86,27.24752213]
[1750496330440,8.5154,141.9,141.86,27.24752213]
[1750496331253,8.5154,141.9,141.86,17.62216308]
[1750496331547,8.5154,141.9,141.86,27.24752213]
[1750496332049,8.5154,141.9,141.86,17.62216308]
[1750496332219,1.6647,141.9,141.86,17.62216308]
[1750496332541,10.31535905,141.92,141.88,9.62535905]
[1750496332963,10.31535905,141.92,141.86,18.09216308]
[1750496333145,0.69,141.93,141.88,9.62535905]
[1750496333461,10.31535905,141.92,141.88,9.62535905]
[1750496333835,10.31535905,141.92,141.89,24.66699555]
[1750496334654,0.69,141.92,141.89,24.66699555]
[1750496334859,10.31535905,141.92,141.89,24.66699555]
[1750496335341,0.69,141.92,141.89,24.66699555]
[1750496335548,10.31535905,141.92,141.89,24.66699555]
[1750496335958,7.8254,141.94,141.89,59.90556063]
[1750496336146,0.69,141.93,141.89,69.53091968]
[1750496336335,10.31535905,141.93,141.89,59.90556063]
[1750496336535,10.31535905,141.93,141.89,69.53091968]
[1750496336837,9.62535905,141.93,141.89,69.53091968]
[1750496337037,0.69,141.92,141.89,69.53091968]
[1750496337434,7.8254,141.94,141.89,59.90556063]
[1750496337659,1.6647,141.94,141.89,60.37556063]
[1750496337865,1.6647,141.94,141.91,9.62535905]
[1750496338165,0.69,141.93,141.89,69.53091968]
[1750496340446,0.69,141.93,141.89,59.90556063]
[1750496340867,1.6647,141.94,141.89,59.90556063]
[1750496341041,1.6647,141.94,141.91,9.62535905]
[1750496341241,1.6647,141.94,141.9,9.62535905]
[1750496341446,0.69,141.92,141.89,59.90556063]
[1750496342366,9.62535905,141.93,141.89,69.53091968]
[1750496342660,10.31535905,141.93,141.89,69.53091968]
[1750496342867,0.69,141.92,141.89,59.90556063]
[1750496343241,2.3547,141.94,141.89,69.53091968]
[1750496343672,1.6647,141.94,141.91,9.62535905]
[1750496344374,1.6647,141.94,141.92,9.62535905]
[1750496344553,1.6647,141.94,141.91,9.62535905]
[1750496345067,11.98005905,141.94,141.91,24.66351912]
[1750496345236,9.62535905,141.93,141.91,24.66351912]
[1750496345436,2.3547,141.94,141.91,34.28887817]
[1750496345641,10.31535905,141.97,141.91,59.89711787]
[1750496345881,9.62535905,141.96,141.91,59.89711787]
[1750496346177,0.69,141.95,141.91,69.52247692]
[1750496346379,10.31535905,141.95,141.91,69.52247692]
[1750496346672,9.62535905,141.93,141.91,24.66351912]
[1750496346850,2.2122,141.92,141.91,24.66351912]
[1750496347374,11.83755905,141.92,141.91,17.61679937]
[1750496347967,1.5222,141.92,141.91,17.61679937]
[1750496348362,2.2122,141.92,141.91,17.61679937]
[1750496349075,11.83755905,141.92,141.91,17.61679937]
[1750496350293,11.83755905,141.92,141.89,7.04771301]
[1750496350468,9.62535905,141.91,141.89,7.04771301]
[1750496350668,2.2122,141.92,141.89,7.04771301]
[1750496350974,9.62535905,141.91,141.89,7.04771301]
[1750496351486,9.62535905,141.9,141.89,17.61928254]
[1750496351972,10.31535905,141.9,141.89,17.61928254]
[1750496352372,9.62535905,141.9,141.87,24.67047296]
[1750496352598,9.62535905,141.88,141.87,24.67047296]
[1750496353381,9.62535905,141.88,141.85,24.67395134]
[1750496354185,0.69,141.9,141.85,59.92245327]
[1750496354369,8.7116,141.92,141.86,9.62535905]
[1750496354694,9.62535905,141.89,141.85,60.39245327]
[1750496354896,9.62535905,141.91,141.87,9.62535905]
[1750496355100,10.32535905,141.91,141.85,60.39245327]
[1750496355291,9.62535905,141.89,141.85,69.54781232]
[1750496355495,0.7,141.91,141.85,69.54781232]
[1750496355675,9.62535905,141.89,141.85,69.54781232]
[1750496355999,10.32535905,141.89,141.85,69.54781232]
[1750496356173,9.62535905,141.89,141.85,60.39245327]
[1750496356503,9.62535905,141.89,141.85,70.01781232]
[1750496356687,9.62535905,141.9,141.85,70.01781232]
[1750496357080,9.62535905,141.9,141.85,60.39245327]
[1750496357399,9.62535905,141.88,141.85,59.92245327]
[1750496357582,8.0116,141.92,141.85,59.92245327]
[1750496357583,5.95748533,141.91,141.86,9.62535905]
[1750496357787,9.62535905,141.9,141.86,9.62535905]
[1750496357993,0.7,141.91,141.86,9.62535905]
[1750496357994,10.32535905,141.91,141.86,0.47]
[1750496358480,10.32535905,141.91,141.86,10.09535905]
[1750496358679,0.7,141.91,141.86,0.47]
[1750496358879,9.62535905,141.9,141.87,24.67047296]
[1750496359784,0.7,141.91,141.87,24.67047296]
[1750496360019,9.62535905,141.9,141.87,24.67047296]
[1750496360610,10.32535905,141.91,141.87,24.67047296]
[1750496361602,10.32535905,141.9,141.87,24.67047296]
[1750496361801,0.7,141.91,141.87,24.67047296]
[1750496361993,9.62535905,141.88,141.87,24.67047296]
[1750496362496,10.32535905,141.88,141.87,7.04870656]
[1750496362701,10.32535905,141.88,141.82,0.47]
[1750496362702,0.7,141.87,141.82,17.62679434]
[1750496362900,9.62535905,141.83,141.8,42.31248136]
[1750496363080,0.7,141.85,141.8,59.9429468]
[1750496363281,0.7,141.86,141.82,9.62535905]
[1750496363482,0.7,141.86,141.81,0.47]
[1750496363483,9.62535905,141.86,141.81,0.47]
[1750496363686,9.62535905,141.86,141.82,9.62535905]
[1750496364005,9.62535905,141.86,141.8,93.8129468]
[1750496364317,9.62535905,141.86,141.82,9.62535905]
[1750496365108,9.62535905,141.86,141.83,24.67743072]
[1750496365290,10.32535905,141.86,141.83,24.67743072]
[1750496366006,0.7,141.86,141.83,24.67743072]
[1750496366216,10.32535905,141.86,141.83,17.62673623]
[1750496366812,0.7,141.86,141.83,17.62673623]
[1750496366994,10.32535905,141.86,141.83,17.62673623]
[1750496368306,10.32535905,141.86,141.83,24.67743072]
[1750496368789,9.62535905,141.84,141.83,24.67743072]
[1750496369202,10.32535905,141.84,141.83,24.67743072]
[1750496369880,17.95885905,141.84,141.83,7.05069449]
[1750496370280,0.7,141.82,141.77,35.26664974]
[1750496370483,10.32535905,141.82,141.77,35.26664974]
[1750496370694,9.62535905,141.79,141.77,35.26664974]
[1750496371092,10.32535905,141.79,141.77,35.26664974]
[1750496371301,10.32535905,141.79,141.74,59.96856178]
[1750496371302,9.62535905,141.78,141.74,59.96856178]
[1750496371500,10.32535905,141.77,141.74,59.96856178]
[1750496372004,9.62535905,141.77,141.74,59.96856178]
[1750496372399,9.62535905,141.77,141.74,35.27546174]
[1750496373109,10.32535905,141.77,141.74,35.27546174]
[1750496373508,10.32535905,141.77,141.74,59.96856178]
[1750496373509,0.7,141.77,141.74,59.96856178]
[1750496373710,11.13765905,141.78,141.74,69.59392083]
[1750496374288,11.13765905,141.78,141.74,59.96856178]
[1750496374602,10.32535905,141.77,141.74,59.96856178]
[1750496375616,10.32535905,141.77,141.74,35.27546174]
[1750496376316,9.62535905,141.76,141.74,35.27546174]
[1750496377503,1.5123,141.78,141.74,35.27546174]
[1750496377814,9.62535905,141.77,141.74,35.27546174]
[1750496379994,10.32535905,141.77,141.74,59.96856178]
[1750496380710,0.7,141.75,141.74,24.69310004]
[1750496380897,10.32535905,141.75,141.74,24.69310004]
[1750496382114,10.32535905,141.75,141.7,59.98588567]
[1750496382293,9.62535905,141.73,141.7,59.98588567]
[1750496382614,0.7,141.76,141.71,10.09535905]
[1750496382794,9.62535905,141.75,141.71,10.09535905]
[1750496382992,0.7,141.76,141.71,10.09535905]
[1750496383217,9.62535905,141.75,141.71,10.09535905]
[1750496383400,9.62535905,141.75,141.71,0.47]
[1750496383598,1.5123,141.78,141.74,10.09535905]
[1750496383927,1.5123,141.78,141.75,9.62535905]
[1750496384087,11.81765905,141.78,141.75,24.69135802]
[1750496384594,9.62535905,141.77,141.75,24.69135802]
[1750496384995,1.5123,141.78,141.75,24.69135802]
[1750496385196,11.13765905,141.78,141.75,24.69135802]
[1750496385825,9.62535905,141.77,141.75,24.69135802]
[1750496386204,2.1923,141.78,141.73,59.97151622]
[1750496386394,9.62535905,141.77,141.73,69.59687527]
[1750496386598,0.68,141.77,141.73,69.59687527]
[1750496386795,10.30535905,141.77,141.73,69.59687527]
[1750496387521,10.30535905,141.77,141.73,59.97151622]
[1750496389028,9.62535905,141.77,141.73,59.97151622]
[1750496389203,10.30535905,141.77,141.73,59.97151622]
[1750496390538,10.30535905,141.77,141.73,52.91584699]
[1750496391231,0.68,141.77,141.73,62.54120604]
[1750496391415,11.13765905,141.78,141.73,53.38584699]
[1750496391615,11.81765905,141.78,141.73,63.01120604]
[1750496392233,11.81765905,141.78,141.73,53.38584699]
[1750496392410,11.81765905,141.78,141.73,63.01120604]
[1750496392612,9.62535905,141.77,141.73,70.06687527]
[1750496392826,9.62535905,141.76,141.73,59.97151622]
[1750496393031,10.30535905,141.76,141.73,59.97151622]
[1750496393938,10.30535905,141.76,141.73,52.91584699]
[1750496395019,9.62535905,141.75,141.73,52.91584699]
[1750496395537,0.68,141.76,141.73,52.91584699]
[1750496395829,9.62535905,141.75,141.73,52.91584699]
[1750496396908,9.62535905,141.74,141.73,17.63917307]
[1750496397304,0.68,141.77,141.73,17.63917307]
[1750496397305,9.62535905,141.75,141.73,17.63917307]
[1750496398039,9.62535905,141.75,141.71,59.98165267]
[1750496398239,9.62535905,141.75,141.72,0.47]
[1750496398711,9.62535905,141.75,141.71,60.45165267]
[1750496398916,9.62535905,141.74,141.71,60.45165267]
[1750496399216,9.62535905,141.75,141.71,60.45165267]
[1750496399532,9.62535905,141.76,141.71,70.07701172]
[1750496399736,9.62535905,141.75,141.71,60.45165267]
[1750496400113,0.68,141.77,141.71,60.45165267]
[1750496400416,9.62535905,141.75,141.71,60.45165267]
[1750496400613,1.5123,141.78,141.74,9.62535905]
[1750496400833,1.5123,141.78,141.75,0.47]
[1750496401012,1.5123,141.78,141.75,10.09535905]
[1750496401332,1.5123,141.78,141.75,0.47]
[1750496402012,9.62535905,141.79,141.76,7.05417607]
[1750496402212,9.62535905,141.8,141.76,24.68961625]
[1750496402712,9.62535905,141.8,141.76,57.06961625]
[1750496403039,9.62535905,141.8,141.76,66.6949753]
[1750496403652,9.62535905,141.8,141.76,101.96585566]
[1750496405045,1.5506,141.81,141.76,24.68961625]
[1750496405046,10.30535905,141.77,141.76,24.68961625]
[1750496405525,10.30535905,141.77,141.73,24.6948423]
[1750496405725,9.62535905,141.75,141.73,24.6948423]
[1750496405939,10.30535905,141.74,141.73,24.6948423]
[1750496406131,9.62535905,141.75,141.73,24.6948423]
[1750496406553,10.30535905,141.76,141.73,24.6948423]
[1750496407238,0.68,141.76,141.73,17.63917307]
[1750496407430,10.30535905,141.76,141.73,17.63917307]
[1750496407831,10.30535905,141.74,141.73,17.63917307]
[1750496408019,9.62535905,141.74,141.72,7.05616709]
[1750496408216,11.85475905,141.73,141.72,7.05616709]
[1750496409122,11.17475905,141.73,141.68,17.64415529]
[1750496409453,9.62535905,141.7,141.68,17.64415529]
[1750496409828,0.68,141.72,141.68,17.64415529]
[1750496409829,2.2294,141.73,141.68,27.26951434]
[1750496410047,9.62535905,141.74,141.69,0.47]
[1750496410349,9.62535905,141.73,141.69,9.62535905]
[1750496411242,9.62535905,141.73,141.7,24.70007057]
[1750496411816,10.30535905,141.73,141.7,24.70007057]
[1750496412022,9.62535905,141.71,141.7,24.70007057]
[1750496412450,10.30535905,141.72,141.7,24.70007057]
[1750496413257,10.30535905,141.72,141.68,24.70355731]
[1750496413441,9.62535905,141.71,141.68,24.70355731]
[1750496414726,10.30535905,141.71,141.68,24.70355731]
[1750496414926,10.30535905,141.7,141.68,24.70355731]
[1750496415254,10.30535905,141.69,141.65,24.70878926]
[1750496415457,9.62535905,141.68,141.65,24.70878926]
[1750496415877,10.30535905,141.69,141.65,24.70878926]
[1750496416075,0.68,141.69,141.65,24.70878926]
[1750496416370,9.62535905,141.68,141.65,24.70878926]
[1750496416579,10.30535905,141.68,141.65,24.70878926]
[1750496416968,0.68,141.68,141.65,24.70878926]
[1750496417271,9.62535905,141.67,141.65,17.64913519]
[1750496417476,0.68,141.69,141.65,17.64913519]
[1750496417678,9.62535905,141.66,141.65,17.64913519]
[1750496418239,0.68,141.65,141.64,7.06015249]
[1750496418468,10.30535905,141.65,141.64,7.06015249]
[1750496419343,0.68,141.65,141.6,9.62535905]
[1750496419568,1.5885,141.66,141.61,9.62535905]
[1750496419756,11.21385905,141.66,141.61,10.09535905]
[1750496420074,9.62535905,141.65,141.59,32.04]
[1750496420279,9.62535905,141.65,141.61,9.62535905]
[1750496420579,1.5885,141.66,141.58,104.97780993]
[1750496420884,6.5105,141.64,141.58,24.72100578]
[1750496421068,0.68,141.65,141.58,60.50672833]
[1750496421373,10.30535905,141.65,141.61,24.71576865]
[1750496421781,10.30535905,141.65,141.61,34.3411277]
[1750496423374,0.68,141.65,141.61,34.3411277]
[1750496423748,10.30535905,141.65,141.61,24.71576865]
[1750496423974,9.62535905,141.64,141.61,24.71576865]
[1750496424464,0.68,141.64,141.61,24.71576865]
[1750496425466,0.68,141.64,141.61,9.62535905]
[1750496426490,0.68,141.64,141.59,86.03248815]
[1750496426673,0.68,141.64,141.6,9.62535905]
[1750496427337,0.68,141.63,141.59,95.6578472]
[1750496427542,9.62535905,141.63,141.59,95.6578472]
[1750496427863,0.68,141.62,141.59,60.03248815]
[1750496428063,9.62535905,141.63,141.59,69.6578472]
[1750496428270,10.30535905,141.63,141.59,69.6578472]
[1750496428652,10.30535905,141.63,141.59,34.34461887]
[1750496429344,9.62535905,141.62,141.59,24.71925982]
[1750496429553,9.62535905,141.62,141.57,58.06]
[1750496429554,0.68,141.6,141.57,24.72275198]
[1750496429752,0.68,141.64,141.57,24.72275198]
[1750496429965,9.62535905,141.61,141.57,34.34811103]
[1750496430141,10.30535905,141.61,141.57,34.34811103]
[1750496430354,10.30535905,141.6,141.57,24.72275198]
[1750496431160,10.30535905,141.58,141.57,7.06364342]
[1750496431354,0.68,141.57,141.55,7.06464146]
[1750496431578,0.68,141.57,141.51,9.62535905]
[1750496431579,9.62535905,141.56,141.52,24.73148671]
[1750496431753,9.62535905,141.55,141.52,24.73148671]
[1750496431955,0.68,141.57,141.52,24.73148671]
[1750496432250,9.62535905,141.55,141.52,24.73148671]
[1750496432455,10.30535905,141.53,141.52,24.73148671]
[1750496433152,9.62535905,141.54,141.52,24.73148671]
[1750496433581,0.68,141.55,141.52,24.73148671]
[1750496433582,10.30535905,141.55,141.52,24.73148671]
[1750496433959,9.62535905,141.55,141.52,24.73148671]
[1750496434180,10.30535905,141.57,141.52,34.35684576]
[1750496434553,9.62535905,141.56,141.52,34.35684576]
[1750496434751,10.30535905,141.56,141.52,34.35684576]
[1750496435589,10.30535905,141.56,141.52,52.99604295]
[1750496435759,10.30535905,141.56,141.52,62.621402]
[1750496436674,18.64964886,141.57,141.52,52.99604295]
[1750496436878,9.62535905,141.55,141.52,52.99604295]
[1750496437582,9.62535905,141.55,141.52,24.73148671]
[1750496437788,0.68,141.54,141.52,24.73148671]
[1750496437974,9.62535905,141.53,141.52,24.73148671]
[1750496438180,0.68,141.54,141.52,24.73148671]
[1750496438376,9.62535905,141.54,141.52,24.73148671]
[1750496438970,9.62535905,141.55,141.52,24.73148671]
[1750496439177,10.30535905,141.56,141.52,24.73148671]